fUSD/lending_fUSD_20240818
["ID","MTS","AMOUNT","RATE_DAILY","PERIOD"]
[335191358,1723966245821,-462.069901,0.00010999,2]
[335191359,1723966245831,-462.069901,0.00010999,2]
[335191360,1723966245840,-222.908388,0.00010999,2]
[335191361,1723966245849,-151.0,0.00010999,2]
[335191362,1723966245859,-151.0,0.00010999,2]
[335191363,1723966245868,-151.0,0.00010999,2]
[335191364,1723966245877,-151.0,0.00010999,2]
[335191365,1723966245887,-151.0,0.00010999,2]
[335191366,1723966245899,-661.15044,0.00010999,2]
[335191367,1723966245911,-661.15044,0.00010999,2]
[335191368,1723966245920,-753.617282,0.00010999,2]
[335191369,1723966245929,-150.0,0.00010999,2]
[335191370,1723966245938,-281.042908,0.00010999,2]
[335191371,1723966245947,-753.617282,0.00010999,2]
[335191372,1723966245957,-151.0,0.00010999,2]
[335191373,1723966245967,-151.0,0.00010999,2]
[335191374,1723966245976,-150.0,0.00010999,2]
[335191376,1723966245986,-151.0,0.00010999,2]
[335191378,1723966245996,-151.0,0.00010999,2]
[335191379,1723966246006,-221.678074,0.00010999,2]
[335191380,1723966246015,-221.678074,0.00010999,2]
[335191381,1723966246024,-151.0,0.00010999,2]
[335191382,1723966246034,-228.975272,0.00010999,2]
[335191383,1723966246043,-184.801467,0.00010999,2]
[335191385,1723966246053,-226.869144,0.00010999,2]
[335191386,1723966246062,-226.869144,0.00010999,2]
[335191387,1723966246072,-226.869144,0.00010999,2]
[335191388,1723966246085,-226.869144,0.00010999,2]
[335191389,1723966246096,-198.439747,0.00010999,2]
[335191390,1723966246105,-198.439747,0.00010999,2]
[335191391,1723966246114,-198.439747,0.00010999,2]
[335191392,1723966246123,-198.439747,0.00010999,2]
[335191393,1723966246133,-151.0,0.00010999,2]
[335191394,1723966246142,-151.0,0.00010999,2]
[335191395,1723966246151,-500.0,0.00010999,2]
[335191396,1723966246160,-500.0,0.00010999,2]
[335191397,1723966246172,-500.0,0.00010999,2]
[335191398,1723966246181,-500.0,0.00010999,2]
[335191399,1723966246191,-500.0,0.00010999,2]
[335191400,1723966246201,-500.0,0.00010999,2]
[335191401,1723966246210,-500.0,0.00010999,2]
[335191402,1723966246220,-500.0,0.00010999,2]
[335191403,1723966246231,-166.91244572,0.00010999,2]
[335191404,1723966246241,-1731.843548,0.00010999,2]
[335191405,1723966246251,-1731.843548,0.00010999,2]
[335191406,1723966246261,-319.747133,0.00010999,2]
[335191407,1723966246272,-319.747133,0.00010999,2]
[335191408,1723966246282,-1731.843548,0.00010999,2]
[335191409,1723966246294,-1731.843548,0.00010999,2]
[335191410,1723966246303,-211.28174781,0.00010999,2]
[335191411,1723966246314,-858.28004,0.00010999,2]
[335191412,1723966246324,-858.28004,0.00010999,2]
[335191413,1723966246333,-858.28004,0.00010999,2]
[335191414,1723966246342,-858.28004,0.00010999,2]
[335191415,1723966246352,-151.0,0.00010999,2]
[335191416,1723966246361,-151.0,0.00010999,2]
[335191417,1723966246371,-500.0,0.00010999,2]
[335191418,1723966246382,-500.0,0.00010999,2]
[335191419,1723966246391,-500.0,0.00010999,2]
[335191420,1723966246401,-500.0,0.00010999,2]
[335191421,1723966246410,-2260.02490874,0.00010999,2]
[335191422,1723966246419,-500.0,0.00010999,2]
[335191423,1723966246429,-500.0,0.00010999,2]
[335191424,1723966246438,-500.0,0.00010999,2]
[335191425,1723966246447,-500.0,0.00010999,2]
[335191426,1723966246456,-161.4153509,0.00010999,2]
[335191427,1723966246465,-183.142897,0.00010999,2]
[335191428,1723966246474,-183.142897,0.00010999,2]
[335191429,1723966246482,-183.142897,0.00010999,2]
[335191430,1723966246491,-183.142897,0.00010999,2]
[335191431,1723966246500,-10000.0,0.00010999,2]
[335191432,1723966246509,-10000.0,0.00010999,2]
[335191433,1723966246519,-10000.0,0.00010999,2]
[335191434,1723966246529,-10000.0,0.00010999,2]
[335191435,1723966246539,-151.0,0.00010999,2]
[335191436,1723966246548,-151.0,0.00010999,2]
[335191437,1723966246558,-243.49493,0.00010999,2]
[335191438,1723966246568,-243.49493,0.00010999,2]
[335191439,1723966246577,-243.49493,0.00010999,2]
[335191440,1723966246587,-243.49493,0.00010999,2]
[335191441,1723966246596,-187.164203,0.00010999,2]
[335191442,1723966246605,-187.164203,0.00010999,2]
[335191443,1723966246614,-187.164203,0.00010999,2]
[335191444,1723966246623,-187.164203,0.00010999,2]
[335191445,1723966246633,-151.0,0.00010999,2]
[335191446,1723966246642,-192.369729,0.00010999,2]
[335191447,1723966246654,-151.0,0.00010999,2]
[335191449,1723966246664,-192.369729,0.00010999,2]
[335191450,1723966246675,-192.369729,0.00010999,2]
[335191451,1723966246685,-192.369729,0.00010999,2]
[335191452,1723966246694,-151.0,0.00010999,2]
[335191453,1723966246703,-151.0,0.00010999,2]
[335191454,1723966246712,-151.0,0.00010999,2]
[335191455,1723966246722,-301.563212,0.00010999,2]
[335191456,1723966246731,-164.40811307,0.00010999,2]
[335191457,1723966246741,-348.18980877,0.00010999,2]
[335191458,1723966246750,-150.51745403,0.00010999,2]
[335191459,1723966246759,-190.510357,0.00010999,2]
[335191460,1723966246769,-190.510357,0.00010999,2]
[335191461,1723966246778,-536.44870464,0.00010999,2]
[335191462,1723966246788,-190.510357,0.00010999,2]
[335191463,1723966246798,-190.510357,0.00010999,2]
[335191464,1723966246807,-700.37,0.00010999,2]
[335191465,1723966246816,-700.37,0.00010999,2]
[335191466,1723966246825,-502.08,0.00010999,2]
[335191467,1723966246835,-700.37,0.00010999,2]
[335191468,1723966246844,-502.08,0.00010999,2]
[335191469,1723966246853,-502.08,0.00010999,2]
[335191470,1723966246862,-700.37,0.00010999,2]
[335191471,1723966246871,-502.08,0.00010999,2]
[335191472,1723966246880,-700.37,0.00010999,2]
[335191473,1723966246889,-502.08,0.00010999,2]
[335191474,1723966246898,-700.37,0.00010999,2]
[335191475,1723966246908,-502.08,0.00010999,2]
[335191476,1723966246917,-700.37,0.00010999,2]
[335191477,1723966246926,-502.08,0.00010999,2]
[335191478,1723966246935,-700.37,0.00010999,2]
[335191479,1723966246944,-502.08,0.00010999,2]
[335191480,1723966246953,-700.37,0.00010999,2]
[335191481,1723966246963,-502.08,0.00010999,2]
[335191482,1723966246972,-502.08,0.00010999,2]
[335191483,1723966246981,-700.37,0.00010999,2]
[335191484,1723966246990,-502.08,0.00010999,2]
[335191485,1723966247000,-700.37,0.00010999,2]
[335191486,1723966247009,-502.08,0.00010999,2]
[335191487,1723966247018,-700.37,0.00010999,2]
[335191488,1723966247027,-502.08,0.00010999,2]
[335191489,1723966247037,-700.37,0.00010999,2]
[335191490,1723966247046,-502.08,0.00010999,2]
[335191491,1723966247055,-700.37,0.00010999,2]
[335191492,1723966247063,-502.08,0.00010999,2]
[335191493,1723966247074,-700.37,0.00010999,2]
[335191494,1723966247086,-700.37,0.00010999,2]
[335191495,1723966247097,-700.37,0.00010999,2]
[335191496,1723966247106,-502.08,0.00010999,2]
[335191497,1723966247115,-700.37,0.00010999,2]
[335191498,1723966247124,-502.08,0.00010999,2]
[335191499,1723966247134,-502.08,0.00010999,2]
[335191500,1723966247143,-700.37,0.00010999,2]
[335191501,1723966247153,-502.08,0.00010999,2]
[335191502,1723966247163,-700.37,0.00010999,2]
[335191503,1723966247175,-502.08,0.00010999,2]
[335191504,1723966247186,-700.37,0.00010999,2]
[335191505,1723966247195,-502.08,0.00010999,2]
[335191506,1723966247205,-700.37,0.00010999,2]
[335191507,1723966247217,-502.16,0.00010999,2]
[335191508,1723966247228,-700.57739442,0.00010999,2]
[335191509,1723966247237,-287.03671,0.00010999,2]
[335191510,1723966247246,-2226.95782688,0.00010999,2]
[335191511,1723966247255,-1866.38643791,0.00010999,2]
[335191512,1723966247265,-1070.27635204,0.00010999,2]
[335191513,1723966247275,-298326.33095961,0.00011,2]
[335191514,1723966247283,-79030.12969594,0.00011,2]
[335191515,1723966247299,-461.72228719,0.00011,2]
[335191516,1723966247310,-26400.76463366,0.00011,2]
[335191517,1723966247394,-389.63124367,0.00011,2]
[335191518,1723966247405,-3358.77699819,0.00011,2]
[335191519,1723966247418,-291.09122005,0.00011,2]
[335191520,1723966247430,-1000.18527722,0.00011,2]
[335191521,1723966247442,-300.0,0.00011,2]
[335191522,1723966247455,-550.5852007,0.00011,2]
[335191523,1723966247468,-470.61999998,0.00011,2]
[335191524,1723966247479,-4776.59933758,0.00011,2]
[335191525,1723966247493,-344.831931,0.00011,2]
[335191526,1723966247504,-264.208,0.00011,2]
[335191527,1723966247516,-3871.59662795,0.00011,2]
[335191528,1723966247532,-5891.39520654,0.00011,2]
[335191529,1723966247543,-419.49964303,0.00011,2]
[335191530,1723966261135,500.0,9.275e-05,2]
[335191531,1723966265271,347.38,8.962e-05,2]
[335191532,1723966320094,1635.0945991,8.962e-05,2]
[335191533,1723966327825,500.0,9.275e-05,2]
[335191534,1723966461538,399.44476336,9.959e-05,2]
[335191539,1723966519108,1635.0945991,9.959e-05,2]
[335191540,1723966530191,238.80429183,9.959e-05,2]
[335191541,1723966531942,766.61,9.981e-05,2]
[335191542,1723966532519,197.01,7.985e-05,2]
[335191543,1723966542398,170.38,9.958e-05,2]
[335191544,1723966650951,159.20286122,9.959e-05,2]
[335191546,1723966656701,1000.0,9.974e-05,2]
[335191547,1723966657349,1635.0945991,9.958e-05,2]
[335191548,1723966759976,351.26,8.219e-05,2]
[335191549,1723966776125,1635.0945991,9.958e-05,2]
[335191550,1723966806382,1635.0945991,9.958e-05,2]
[335191551,1723966832630,200.0,9.916e-05,2]
[335191553,1723966917254,170.42,9.902e-05,2]
[335191555,1723966962335,318.40572244,9.926e-05,2]
[335191556,1723966969491,23900.0,9.886e-05,2]
[335191557,1723967023444,1074.43,9.907e-05,2]
[335191558,1723967067039,297.51588055,9.943e-05,2]
[335191559,1723967071851,170.38,9.903e-05,2]
[335191561,1723967142181,26162.30956378,9.943e-05,2]
[335191562,1723967156193,202.99768405,9.943e-05,2]
[335191563,1723967207463,500.0,9.9e-05,2]
[335191564,1723967210230,611.78022026,9.959e-05,2]
[335191566,1723967233007,377.66,8.219e-05,2]
[335191569,1723967239296,200.0,9.868e-05,2]
[335191581,1723967320509,200.0,9.843e-05,2]
[335191582,1723967342595,228.23,9.853e-05,2]
[335191583,1723967344489,250.0,9.853e-05,2]
[335191586,1723967372303,552.34393963,9.943e-05,2]
[335191588,1723967385142,-2343.11814301,9.988e-05,2]
[335191590,1723967385169,-1334.2146562,9.988e-05,2]
[335191592,1723967385202,-1448.21265644,9.988e-05,2]
[335191602,1723967394339,275.28,9.919e-05,2]
[335191603,1723967410098,-60.25634963,9.988e-05,2]
[335191604,1723967410125,-1085.81192105,9.988e-05,2]
[335191605,1723967420866,166.53,9.859e-05,2]
[335191606,1723967432355,-440.37274966,0.00010026,2]
[335191607,1723967432366,-171.14,0.00010026,2]
[335191608,1723967432375,-191.52383957,0.00010026,2]
[335191609,1723967432384,-2.59373023,0.00010026,2]
[335191610,1723967432398,-178.56446166,0.00010026,2]
[335191611,1723967432408,-299.14911154,0.00010026,2]
[335191612,1723967432417,-878.43858159,0.00010059,2]
[335191613,1723967432427,-200.0,0.0001006,2]
[335191614,1723967432437,-178.34,0.0001042,2]
[335191615,1723967432447,-150.0,0.00010438,2]
[335191616,1723967432457,-377.66,0.00010469,2]
[335191617,1723967432467,-499.99,0.00010471,2]
[335191618,1723967432477,-1997.2,0.00010471,2]
[335191619,1723967432487,-1863.87532004,0.00010471,2]
[335191620,1723967432497,-395.01,0.00010471,2]
[335191621,1723967432506,-10578.96151935,0.00010471,2]
[335191622,1723967432516,-150.0,0.00010698,2]
[335191623,1723967432525,-2112.26107616,0.00010699,2]
[335191624,1723967432535,-919.48395002,0.00010699,2]
[335191625,1723967432544,-1500.0,0.00010713,2]
[335191626,1723967432554,-674.3969528,0.00010799,2]
[335191627,1723967432564,-3418.65990276,0.000108,2]
[335191628,1723967432573,-1074.88726643,0.00010852,2]
[335191629,1723967432582,-310.66541419,0.00010861,2]
[335191630,1723967432591,-203.44814982,0.00010861,2]
[335191631,1723967432601,-522.9745894,0.00010862,2]
[335191632,1723967432610,-328.86743048,0.00010862,2]
[335191633,1723967432619,-500.0,0.00010862,2]
[335191634,1723967432629,-255.71947903,0.00010862,2]
[335191635,1723967432639,-323.88959871,0.00010862,2]
[335191636,1723967432648,-517.65878543,0.00010862,2]
[335191637,1723967432657,-155.2991851,0.00010862,2]
[335191638,1723967432666,-285.50628618,0.00010888,2]
[335191639,1723967432675,-155.0,0.00010888,2]
[335191640,1723967432685,-236.78945143,0.00010888,2]
[335191641,1723967432694,-1040.68862,0.0001089,2]
[335191642,1723967432704,-166.39780491,0.0001089,2]
[335191643,1723967432713,-358.14086593,0.0001089,2]
[335191644,1723967432723,-164.4317177,0.0001089,2]
[335191645,1723967432732,-242.53687016,0.0001089,2]
[335191647,1723967432741,-500.0,0.00010898,2]
[335191649,1723967432750,-500.0,0.00010898,2]
[335191650,1723967432760,-151.0,0.00010899,2]
[335191651,1723967432769,-151.0,0.00010899,2]
[335191652,1723967432778,-151.0,0.00010899,2]
[335191653,1723967432788,-151.0,0.00010899,2]
[335191655,1723967432797,-151.0,0.00010899,2]
[335191656,1723967432806,-284.781568,0.00010899,2]
[335191657,1723967432816,-500.0,0.00010899,2]
[335191658,1723967432825,-500.0,0.00010899,2]
[335191659,1723967432834,-529.01492508,0.00010899,2]
[335191660,1723967432847,-151.0,0.000109,2]
[335191661,1723967432856,-151.0,0.000109,2]
[335191662,1723967432866,-1040.68862,0.000109,2]
[335191663,1723967432876,-152.92137313,0.000109,2]
[335191664,1723967432885,-2418.04453887,0.000109,2]
[335191665,1723967432895,-171.61026492,0.000109,2]
[335191666,1723967432904,-167.7305538,0.000109,2]
[335191667,1723967432914,-627.84632787,0.000109,2]
[335191668,1723967432924,-342.93853277,0.000109,2]
[335191669,1723967432934,-1040.68862,0.0001094,2]
[335191670,1723967432943,-151.0,0.00010947,2]
[335191671,1723967432952,-250.0,0.00010959,2]
[335191672,1723967432962,-150.0,0.00010959,2]
[335191673,1723967432971,-769.62,0.00010959,2]
[335191674,1723967432981,-151.0,0.00010967,2]
[335191675,1723967432991,-26162.30956378,0.00010979,2]
[335191676,1723967433000,-292.74243511,0.00010979,2]
[335191677,1723967433009,-1040.68862,0.0001098,2]
[335191678,1723967433018,-195.36205429,0.00010989,2]
[335191679,1723967433028,-303.25596345,0.00010989,2]
[335191680,1723967433042,-196.74403655,0.00010989,2]
[335191681,1723967433051,-11479.46077383,0.0001099,2]
[335191682,1723967433063,-1249.78872132,0.0001099,2]
[335191683,1723967433078,-6154.11858187,0.0001099,2]
[335191684,1723967433090,-2700.0,0.0001099,2]
[335191685,1723967433102,-1028.79,0.0001099,2]
[335191686,1723967433113,-555.249,0.0001099,2]
[335191687,1723967433133,-752.17210597,0.0001099,2]
[335191688,1723967433144,-11911.85904964,0.0001099,2]
[335191689,1723967433160,-527.322701,0.0001099,2]
[335191690,1723967433172,-23438.16518793,0.0001099,2]
[335191691,1723967433183,-1919.22464758,0.0001099,2]
[335191692,1723967433195,-1184.24886143,0.0001099,2]
[335191693,1723967433207,-368.7704374,0.0001099,2]
[335191694,1723967433219,-2962.25562924,0.0001099,2]
[335191695,1723967433231,-5036.6456329,0.0001099,2]
[335191696,1723967433243,-8187.43401926,0.0001099,2]
[335191697,1723967433254,-5452.55193141,0.0001099,2]
[335191698,1723967433266,-4507.06363913,0.0001099,2]
[335191699,1723967433281,-376.78213767,0.0001099,2]
[335191703,1723967438470,-291.47663014,0.0001099,2]
[335191704,1723967438515,-25794.47568979,0.0001099,2]
[335191705,1723967438526,-40347.244,0.0001099,2]
[335191706,1723967438538,-37616.033428,0.0001099,2]
[335191875,1723967440572,-56158.86719449,0.0001099,2]
[335191877,1723967440581,-1298.71692182,0.00010993,2]
[335191879,1723967440590,-403.60316378,0.00010993,2]
[335191881,1723967440599,-2073.6933353,0.00010995,2]
[335191883,1723967440609,-9838.83783139,0.00010995,2]
[335191891,1723967440678,-13412.00103461,0.00010995,2]
[335191893,1723967440687,-811.95118385,0.00010997,2]
[335191895,1723967440696,-985.73362732,0.00010999,2]
[335191897,1723967440706,-151.0,0.00010999,2]
[335191899,1723967440715,-151.0,0.00010999,2]
[335191901,1723967440724,-500.77764774,0.00010999,2]
[335191903,1723967440733,-500.0,0.00010999,2]
[335191905,1723967440742,-500.0,0.00010999,2]
[335191907,1723967440751,-500.0,0.00010999,2]
[335191909,1723967440759,-520.77278564,0.00010999,2]
[335191911,1723967440769,-500.0,0.00010999,2]
[335191913,1723967440778,-500.0,0.00010999,2]
[335191915,1723967440787,-500.0,0.00010999,2]
[335191917,1723967440796,-500.0,0.00010999,2]
[335191919,1723967440805,-500.0,0.00010999,2]
[335191921,1723967440813,-500.0,0.00010999,2]
[335191923,1723967440822,-500.0,0.00010999,2]
[335191925,1723967440831,-492.62112894,0.00010999,2]
[335191926,1723967440840,-500.0,0.00010999,2]
[335191928,1723967440849,-500.0,0.00010999,2]
[335191930,1723967440858,-500.0,0.00010999,2]
[335191932,1723967440867,-500.0,0.00010999,2]
[335191934,1723967440877,-500.0,0.00010999,2]
[335191936,1723967440885,-500.0,0.00010999,2]
[335191938,1723967440894,-500.0,0.00010999,2]
[335191940,1723967440903,-644.14,0.00010999,2]
[335191942,1723967440912,-500.0,0.00010999,2]
[335191944,1723967440922,-500.0,0.00010999,2]
[335191946,1723967440931,-500.0,0.00010999,2]
[335191948,1723967440939,-500.0,0.00010999,2]
[335191950,1723967440948,-500.0,0.00010999,2]
[335191952,1723967440958,-173.30800425,0.00010999,2]
[335191954,1723967440968,-500.0,0.00010999,2]
[335191956,1723967440977,-500.0,0.00010999,2]
[335191958,1723967440986,-500.0,0.00010999,2]
[335191960,1723967440995,-500.0,0.00010999,2]
[335191962,1723967441003,-500.0,0.00010999,2]
[335191964,1723967441012,-500.0,0.00010999,2]
[335191966,1723967441021,-500.0,0.00010999,2]
[335191968,1723967441030,-500.0,0.00010999,2]
[335191970,1723967441038,-290.40094088,0.00010999,2]
[335191972,1723967441047,-202.99768405,0.00010999,2]
[335191974,1723967441056,-500.0,0.00010999,2]
[335191976,1723967441065,-500.0,0.00010999,2]
[335191978,1723967441074,-500.0,0.00010999,2]
[335191980,1723967441083,-500.0,0.00010999,2]
[335191982,1723967441092,-478.9688741,0.00010999,2]
[335191984,1723967441101,-500.0,0.00010999,2]
[335191985,1723967441111,-500.0,0.00010999,2]
[335191988,1723967441120,-500.0,0.00010999,2]
[335191990,1723967441129,-500.0,0.00010999,2]
[335191991,1723967441138,-500.0,0.00010999,2]
[335191993,1723967441147,-500.0,0.00010999,2]
[335191995,1723967441156,-500.0,0.00010999,2]
[335191997,1723967441165,-500.0,0.00010999,2]
[335191999,1723967441174,-500.0,0.00010999,2]
[335192001,1723967441183,-601.58113087,0.00010999,2]
[335192003,1723967441193,-500.0,0.00010999,2]
[335192005,1723967441202,-500.0,0.00010999,2]
[335192007,1723967441212,-500.0,0.00010999,2]
[335192009,1723967441221,-500.0,0.00010999,2]
[335192011,1723967441230,-500.0,0.00010999,2]
[335192013,1723967441239,-408.2697894,0.00010999,2]
[335192015,1723967441248,-194.65290632,0.00010999,2]
[335192017,1723967441258,-197.53097559,0.00010999,2]
[335192019,1723967441267,-7893.14991105,0.00011,2]
[335192022,1723967441278,-335.82368523,0.00011,2]
[335192024,1723967441289,-615.61579363,0.00011,2]
[335192208,1723967443407,-472.9088214,0.00011,2]
[335192210,1723967443421,-550008.95899765,0.00011,2]
[335192211,1723967443431,-90085.83020998,0.00011,2]
[335192213,1723967443440,-1361054.87387598,0.00011,2]
[335192219,1723967443515,-566.35561271,0.00011,2]
[335192274,1723967444331,-586.69214471,0.00011,2]
[335192276,1723967444342,-8798.02859357,0.00011,2]
[335192279,1723967444353,-485.305,0.00011,2]
[335192281,1723967444364,-6099.87879838,0.00011,2]
[335192492,1723967446436,-202.99768405,0.00010993,2]
[335192495,1723967446446,-362.13721795,0.00011,2]
[335192503,1723967446598,-2470.26994605,0.00011,2]
[335192505,1723967446609,-8499.85506002,0.00011,2]
[335192507,1723967446620,-16288.40638518,0.00011,2]
[335192509,1723967446632,-6298.44402981,0.00011,2]
[335192513,1723967446652,-5948.71108862,0.00011,2]
[335192520,1723967446709,-432.05266282,0.00011,2]
[335192522,1723967446720,-612.34305062,0.00011,2]
[335192528,1723967446764,-949.65,0.00011,2]
[335192530,1723967446775,-2066.50353201,0.00011,2]
[335192633,1723967627779,23900.0,9.982e-05,2]
[335192634,1723967628818,174.17,9.982e-05,2]
[335192635,1723967736177,840.0,9.945e-05,2]
[335192638,1723967771910,269.07599176,9.982e-05,2]
[335192642,1723967868676,500.84920261,9.275e-05,2]
[335192643,1723967890095,500.0,9.275e-05,2]
[335192644,1723967923097,12499.23,9.854e-05,2]
[335192645,1723967989963,161.61,9.813e-05,2]
[335192646,1723968017279,460.85,8.219e-05,2]
[335192647,1723968038042,187.96,9.817e-05,2]
[335192649,1723968043762,633.53,9.834e-05,2]
[335192650,1723968045190,725.58,9.834e-05,2]
[335192651,1723968071680,410.1,9.939e-05,2]
[335192653,1723968090726,150.0,0.00015065,120]
[335192654,1723968102682,172.62,9.854e-05,2]
[335192655,1723968140979,23900.0,9.85e-05,2]
[335192657,1723968205632,328.0,9.844e-05,2]
[335192665,1723968314021,150.0,9.888e-05,2]
[335192666,1723968332337,-550.0,0.0001,2]
[335192667,1723968363011,413.26180093,0.0001,2]
[335192668,1723968385165,162.81127159,0.0001,2]
[335192669,1723968390743,150.0,0.00015537,120]
[335192672,1723968400319,170.59001801,0.0001,2]
[335192675,1723968422164,1800.0,0.0001,3]
[335192695,1723968475622,1050.97286875,0.0001,2]
[335192696,1723968476279,691.2403395,0.0001,2]
[335192697,1723968485278,170.59001801,0.0001,2]
[335192698,1723968489168,162.81127159,0.0001,2]
[335192699,1723968495625,181.93364741,0.0001,2]
[335192700,1723968506727,457.97,8.219e-05,2]
[335192701,1723968510581,181.93364741,0.0001,2]
[335192702,1723968516681,413.26180093,0.0001,2]
[335192703,1723968522624,163.1411883,0.0001,2]
[335192704,1723968527773,170.59001801,0.0001,2]
[335192706,1723968531230,576.03361625,0.0001,2]
[335192707,1723968539253,878.53608169,9.999e-05,2]
[335192708,1723968539279,24535.40954274,9.999e-05,2]
[335192709,1723968559088,181.93364741,0.0001,2]
[335192710,1723968562803,170.59001801,0.0001,2]
[335192711,1723968569985,413.26180093,0.0001,2]
[335192712,1723968579012,1050.97286875,0.0001,2]
[335192713,1723968579405,237.4,9.815e-05,2]
[335192716,1723968599934,-11502.0,0.000106,5]
[335192717,1723968617587,211.03413449,0.0001,2]
[335192719,1723968631468,-778.63384695,0.00010009,2]
[335192720,1723968631479,-1891.59002609,0.00010009,2]
[335192721,1723968631524,-172.45978923,0.00010009,2]
[335192722,1723968631534,-671.84326448,0.00010026,2]
[335192723,1723968631543,-2778.61177474,0.00010026,2]
[335192724,1723968631554,-2285.88444891,0.00010026,2]
[335192725,1723968631563,-3605.21254283,0.000101,3]
[335192726,1723968631579,-94.78745717,0.000101,3]
[335192727,1723968631589,-5500.0,0.000102,3]
[335192728,1723968631598,-213.81725483,0.000103,3]
[335192729,1723968631744,-4714.80270774,0.000103,3]
[335192730,1723968631757,-2471.38003743,0.000103,3]
[335192731,1723968631767,-210.52,0.00010308,2]
[335192732,1723968631776,-2393.55207285,0.000104,2]
[335192733,1723968631787,-1161.35257624,0.000104,2]
[335192735,1723968631799,-170.10535091,0.000104,2]
[335192737,1723968631810,-359.13922506,0.000104,3]
[335192739,1723968631822,-376.37542403,0.000104,3]
[335192743,1723968637492,-8564.48535091,0.000104,3]
[335192744,1723968637502,-282.18,0.000104,2]
[335192745,1723968637511,-150.0,0.0001044,2]
[335192746,1723968637520,-150.99,0.0001044,2]
[335192747,1723968637530,-150.99,0.0001044,2]
[335192748,1723968637539,-6779.8597245,0.00010441,2]
[335192749,1723968637549,-499.99,0.00010441,2]
[335192750,1723968637558,-563.33,0.00010441,2]
[335192751,1723968637567,-1762.3,0.00010441,2]
[335192752,1723968637576,-457.97,0.00010467,2]
[335192753,1723968637585,-1800.0,0.000105,3]
[335192754,1723968637595,-155.0,0.00010505,2]
[335192755,1723968637604,-289.41545164,0.00010566,2]
[335192756,1723968637613,-1800.0,0.000106,3]
[335192757,1723968637623,-155.27713718,0.00010699,2]
[335192758,1723968637632,-2343.11814301,0.00010699,2]
[335192759,1723968637641,-1500.0,0.00010699,2]
[335192760,1723968637650,-1800.0,0.000107,3]
[335192761,1723968637659,-5064.91531766,0.00010702,2]
[335192762,1723968637668,-247.0,0.00010712,2]
[335192763,1723968637677,-1178.0,0.00010712,2]
[335192764,1723968637686,-3292.0,0.00010712,2]
[335192765,1723968637696,-764.0,0.00010712,2]
[335192766,1723968637705,-1298.20256348,0.00010713,2]
[335192767,1723968637714,-2652.55741198,0.00010713,2]
[335192768,1723968637724,-1740.58702066,0.00010713,2]
[335192769,1723968637733,-150.0,0.00010733,2]
[335192770,1723968637742,-1500.0,0.00010735,2]
[335192771,1723968637751,-150.0,0.00010738,2]
[335192772,1723968637760,-150.0,0.00010739,2]
[335192774,1723968637770,-150.0,0.0001075,2]
[335192776,1723968637779,-150.0,0.00010753,2]
[335192778,1723968637788,-150.0,0.00010754,2]
[335192780,1723968637797,-150.0,0.00010758,2]
[335192782,1723968637806,-150.0,0.00010762,2]
[335192784,1723968637816,-150.0,0.00010765,2]
[335192786,1723968637825,-150.0,0.00010765,2]
[335192788,1723968637834,-150.0,0.00010769,2]
[335192790,1723968637843,-150.0,0.00010769,2]
[335192792,1723968637851,-150.0,0.00010774,2]
[335192794,1723968637861,-150.0,0.00010779,2]
[335192796,1723968637870,-161.0,0.0001079,2]